bitfinex/quotes_BTCUSD_20220218
["timestamp","ask_amount","ask_price","bid_price","bid_amount"]
[1645205772169,2.48868608,40048.0,40045.0,0.0008408]
[1645205772469,2.48868608,40048.0,40029.0,0.001]
[1645205772470,0.13426993,40040.0,40029.0,0.001]
[1645205772668,1.45,40038.0,40029.0,0.001]
[1645205772873,0.28788891,40037.0,40029.0,0.001]
[1645205773067,0.7604,40036.0,40029.0,0.001]
[1645205773268,0.28788891,40037.0,40032.0,0.0009]
[1645205773269,0.332895,40035.0,40032.0,0.0009]
[1645205773470,0.2,40031.0,40022.0,0.0011]
[1645205773669,0.40534185,40023.0,40022.0,0.0011]
[1645205774266,0.84040025,40023.0,40022.0,0.0011]
[1645205774465,0.83047702,40023.0,40022.0,0.0011]
[1645205774719,0.74040025,40023.0,40022.0,0.0011]
[1645205774921,0.50750525,40023.0,40022.0,0.0011]
[1645205775119,1.782895,40022.0,40021.0,0.0061]
[1645205775320,0.15,40022.0,40021.0,0.0061]
[1645205775625,0.1499352,40022.0,40021.0,0.0061]
[1645205775818,1.45,40021.0,40018.0,0.0021]
[1645205776219,1.6,40021.0,40018.0,0.0021]
[1645205776419,0.332895,40019.0,40014.0,0.001]
[1645205776622,0.40534185,40015.0,40014.0,0.001]
[1645205776818,0.332895,40013.0,40011.0,0.00015655]
[1645205777018,0.062543,40013.0,40011.0,0.00015655]
[1645205777222,0.009,40015.0,40011.0,0.00015655]
[1645205777617,0.40750525,40023.0,40011.0,0.00015655]
[1645205777818,0.45750525,40023.0,40012.0,0.25154264]
[1645205778123,0.062521,40017.0,40012.0,0.25154264]
[1645205778571,0.0094,40022.0,40015.0,0.02755315]
[1645205778771,0.1903,40036.0,40016.0,0.36044815]
[1645205778967,0.1903,40036.0,40025.0,0.28259701]
[1645205778968,0.0096,40035.0,40025.0,0.28259701]
[1645205779368,0.125007,40032.0,40025.0,0.28259701]
[1645205779570,0.1998,40039.0,40027.0,0.02755315]
[1645205779769,0.0099,40043.0,40027.0,0.09626]
[1645205779975,0.0099,40043.0,40011.0,0.10015655]
[1645205779976,0.07244685,40032.0,40011.0,0.10015655]
[1645205780177,0.07244685,40028.0,40012.0,0.0091]
[1645205780369,0.06251,40024.0,40012.0,0.0091]
[1645205780770,0.06251,40024.0,40014.0,0.02755315]
[1645205780972,0.125019,40029.0,40018.0,0.10339686]
[1645205781170,0.0099,40031.0,40021.0,0.02755315]
[1645205781569,0.0099,40031.0,40019.0,0.1]
[1645205781969,0.18914366,40025.0,40021.0,0.26011384]
[1645205782418,0.0099,40031.0,40012.0,0.3091]
[1645205782620,0.0099,40031.0,40012.0,0.31033889]
[1645205782819,0.062506,40025.0,40015.0,0.0001457]
[1645205783019,0.125014,40029.0,40015.0,0.0001457]
[1645205783020,0.07244685,40023.0,40015.0,0.0001457]
[1645205783219,0.332895,40022.0,40015.0,0.0001457]
[1645205783818,0.05,40023.0,40018.0,0.11496168]
[1645205784020,0.1,40029.0,40018.0,0.11496168]
[1645205784021,0.06251,40026.0,40019.0,0.632895]
[1645205784223,0.0099,40031.0,40019.0,0.632895]
[1645205784519,0.0099,40031.0,40018.0,0.11496168]
[1645205784719,0.0099,40031.0,40018.0,0.11620057]
[1645205784920,0.18957253,40028.0,40018.0,0.11620057]
[1645205785122,0.3954,40027.0,40018.0,0.00123889]
[1645205785321,0.062505,40027.0,40018.0,0.00123889]
[1645205785720,0.062505,40027.0,40021.0,0.3485628]
[1645205785721,0.332895,40026.0,40021.0,0.3485628]
[1645205785978,0.062505,40027.0,40021.0,0.3485628]
[1645205786166,0.062505,40027.0,40018.0,0.00123889]
[1645205786365,0.062511,40026.0,40018.0,0.00123889]
[1645205786564,0.062505,40027.0,40018.0,0.00123889]
[1645205787066,0.34076134,40025.0,40018.0,0.00123889]
[1645205787267,0.07244685,40023.0,40018.0,0.00123889]
[1645205787466,0.062519,40022.0,40018.0,0.00123889]
[1645205787865,0.24284434,40021.0,40018.0,0.00123889]
[1645205788463,0.062519,40022.0,40018.0,0.00123889]
[1645205789263,0.062507,40024.0,40018.0,0.00123889]
[1645205789467,0.21830023,40029.0,40018.0,0.00123889]
[1645205789734,0.3,40037.0,40021.0,0.02762856]
[1645205789936,0.062489,40041.0,40025.0,0.02762856]
[1645205789937,0.01,40038.0,40025.0,0.02762856]
[1645205790133,0.2215,40046.0,40030.0,0.02762856]
[1645205790134,0.01,40043.0,40030.0,0.02762856]
[1645205790433,0.062484,40040.0,40026.0,0.0086]
[1645205790631,0.08237144,40043.0,40027.0,0.1]
[1645205790632,0.19465497,40042.0,40027.0,0.1]
[1645205790830,0.25713997,40042.0,40027.0,0.09713889]
[1645205791031,0.25713997,40042.0,40027.0,0.39713889]
[1645205791431,0.062485,40039.0,40027.0,0.19713889]
[1645205791631,0.18708048,40035.0,40027.0,0.19713889]
[1645205791931,0.18708048,40035.0,40027.0,0.34788512]
[1645205792329,0.18708048,40035.0,40028.0,0.10494479]
[1645205792531,0.062494,40033.0,40029.0,0.0459]
[1645205792731,0.062494,40033.0,40029.0,0.04713889]
[1645205792931,0.012494,40033.0,40029.0,0.04713889]
[1645205793374,0.08486544,40033.0,40029.0,0.00123889]
[1645205793569,0.41496644,40032.0,40029.0,0.00123889]
[1645205793771,0.0625,40031.0,40029.0,0.00123889]
[1645205793969,0.0097,40032.0,40029.0,0.00123889]
[1645205794168,0.1998,40038.0,40030.0,0.60586073]
[1645205794368,0.35174993,40046.0,40031.0,0.332895]
[1645205794369,0.07237144,40044.0,40031.0,0.332895]
[1645205794567,0.07237144,40044.0,40030.0,0.27296573]
[1645205794568,0.17237144,40044.0,40032.0,0.3089]
[1645205794767,0.07237144,40044.0,40032.0,0.31013889]
[1645205795167,0.07237144,40044.0,40040.0,0.1302887]
[1645205795370,0.0091,40046.0,40043.0,0.30321041]
[1645205795569,0.07237144,40053.0,40043.0,0.30321041]
[1645205795768,0.0095,40052.0,40044.0,0.3]
[1645205795969,0.07237144,40058.0,40045.0,0.342195]
[1645205795970,0.187409,40058.0,40045.0,0.342195]
[1645205796171,0.187409,40058.0,40046.0,0.0459]
[1645205796376,0.187409,40058.0,40051.0,0.09887862]
[1645205796377,0.332895,40057.0,40051.0,0.09887862]
[1645205796569,0.062459,40055.0,40051.0,0.09887862]
[1645205796768,0.062459,40055.0,40051.0,0.10011751]
[1645205797217,0.457821,40054.0,40051.0,0.00123889]
[1645205797416,0.062459,40055.0,40051.0,0.00123889]
[1645205797617,0.332895,40054.0,40051.0,0.00123889]
[1645205797817,0.062462,40054.0,40051.0,0.00123889]
[1645205798018,0.18815678,40052.0,40051.0,0.00123889]
[1645205798619,0.59342322,40052.0,40051.0,0.00123889]
[1645205798821,0.26052822,40052.0,40051.0,0.00123889]
[1645205799024,0.31052822,40052.0,40051.0,0.00123889]
[1645205799419,0.23815678,40052.0,40051.0,0.00123889]
[1645205799620,0.53830132,40052.0,40051.0,0.00123889]
[1645205799818,0.48830132,40052.0,40051.0,0.00123889]
[1645205800219,0.18815678,40052.0,40051.0,0.00123889]
[1645205800720,0.23815678,40052.0,40051.0,0.00123889]
[1645205800973,0.23815678,40052.0,40035.0,0.0459]
[1645205800974,1.143295,40052.0,40035.0,0.0459]
[1645205801171,0.07237144,40042.0,40039.0,0.35029975]
[1645205801368,0.05,40042.0,40039.0,0.35029975]
[1645205801767,0.0099,40047.0,40040.0,0.332895]
[1645205801968,0.32496932,40050.0,40043.0,0.09962066]
[1645205802268,0.06247,40048.0,40042.0,0.15]
[1645205802570,0.07237144,40047.0,40042.0,0.15]
[1645205802767,0.05,40047.0,40042.0,0.15]
[1645205803169,0.07237144,40043.0,40042.0,0.15]
[1645205803367,0.25915664,40043.0,40042.0,0.15]
[1645205803570,0.89205164,40043.0,40042.0,0.15]
[1645205803768,1.5,40042.0,40028.0,0.00023192]
[1645205803968,1.5,40042.0,40027.0,0.00023192]
[1645205803969,0.07237144,40035.0,40027.0,0.00023192]
[1645205804176,0.332895,40041.0,40026.0,0.00023192]
[1645205804177,0.07237144,40032.0,40026.0,0.00023192]
[1645205804367,0.062506,40027.0,40014.0,0.00893192]
[1645205804615,0.31475242,40027.0,40018.0,0.12635607]
[1645205804815,0.31475242,40027.0,40023.0,0.29989338]
[1645205805017,0.062506,40027.0,40019.0,0.00023192]
[1645205805214,0.062506,40027.0,40016.0,0.00023192]
[1645205805420,0.425011,40028.0,40015.0,0.00023192]
[1645205805421,0.062509,40024.0,40015.0,0.00023192]
[1645205805817,0.062509,40024.0,40017.0,0.00013393]
[1645205806016,0.062509,40024.0,40018.0,0.27985675]
[1645205806217,0.28023463,40024.0,40018.0,0.27985675]
[1645205806416,0.28023463,40024.0,40018.0,0.00023192]
[1645205806719,0.12503,40022.0,40018.0,0.00023192]
[1645205806918,0.3,40021.0,40016.0,0.00023192]
[1645205807116,0.3,40021.0,40013.0,0.00013393]
[1645205807117,0.3096,40021.0,40015.0,0.00023192]
[1645205807316,0.19740144,40022.0,40014.0,0.00023192]
[1645205807516,0.12503,40022.0,40013.0,0.00013393]
[1645205807716,0.062514,40020.0,40013.0,0.00013393]
[1645205807918,0.057514,40020.0,40013.0,0.33302893]
[1645205808116,0.057514,40020.0,40013.0,0.332895]
[1645205808375,0.057514,40020.0,40012.0,0.00023192]
[1645205808376,0.057514,40020.0,40016.0,0.43946013]
[1645205808569,0.057514,40020.0,40017.0,0.332895]
[1645205808768,0.057514,40020.0,40018.0,0.332895]
[1645205809069,0.25006806,40029.0,40016.0,0.43946013]
[1645205809070,0.125012,40027.0,40017.0,0.332895]
[1645205809372,0.125012,40027.0,40023.0,0.3279056]
[1645205809768,0.23576395,40032.0,40024.0,0.10508545]
[1645205809970,0.23576395,40032.0,40024.0,0.10531737]
[1645205810168,0.07237144,40030.0,40024.0,0.10531737]
[1645205810370,0.395402,40029.0,40024.0,0.00023192]
[1645205810570,0.395402,40029.0,40019.0,0.00023192]
[1645205810571,0.1998,40025.0,40019.0,0.00023192]
[1645205810767,0.1998,40025.0,40018.0,0.00873192]
[1645205810968,0.1998,40025.0,40018.0,0.00023192]
[1645205811269,0.44985,40025.0,40018.0,0.09690619]
[1645205811472,0.00159628,40021.0,40018.0,0.09713811]
[1645205811669,0.06411128,40021.0,40018.0,0.09690619]
[1645205812215,0.06411128,40021.0,40019.0,0.332895]
[1645205812415,0.06411128,40021.0,40020.0,0.332895]
[1645205812617,0.00159628,40021.0,40020.0,0.332895]
[1645205813414,0.00159628,40021.0,40020.0,0.59603271]
[1645205814117,0.00159628,40021.0,40020.0,0.86956127]
[1645205814318,0.009,40036.0,40021.0,1.45469255]
[1645205814522,0.1998,40038.0,40022.0,0.378795]
[1645205814718,0.3,40045.0,40028.0,0.12901669]
[1645205814719,0.5088,40045.0,40028.0,0.12901669]
[1645205814922,0.062493,40034.0,40028.0,0.12901669]
[1645205815117,0.062493,40034.0,40023.0,0.00893192]
[1645205815118,0.062493,40034.0,40024.0,0.00023192]
[1645205815318,0.062493,40034.0,40025.0,0.332895]
[1645205815516,0.062493,40034.0,40022.0,0.00036496]
[1645205815717,0.062493,40034.0,40023.0,0.332895]
[1645205815968,0.062493,40034.0,40023.0,0.432895]
[1645205816168,0.062493,40034.0,40023.0,0.43312692]
[1645205816372,0.32189202,40031.0,40023.0,0.00023192]
[1645205816571,0.062506,40030.0,40022.0,0.00023192]
[1645205816768,0.062506,40030.0,40021.0,0.00469255]
[1645205816769,0.062506,40030.0,40021.0,0.00492447]
[1645205816970,0.07237144,40029.0,40021.0,0.00492447]
[1645205817172,0.062506,40030.0,40022.0,0.332895]
[1645205817369,0.062506,40030.0,40024.0,0.12923627]
[1645205817769,0.052506,40030.0,40024.0,0.12923627]
[1645205818570,0.052506,40030.0,40022.0,0.00023192]
[1645205818771,0.052506,40030.0,40021.0,0.00492447]
[1645205818772,0.35,40029.0,40021.0,0.00492447]
[1645205818972,0.35,40029.0,40021.0,0.00469255]
[1645205818973,0.062511,40028.0,40021.0,0.00469255]
[1645205819172,0.13488244,40028.0,40021.0,0.00469255]
[1645205819372,0.07237144,40025.0,40021.0,0.00469255]
[1645205819616,0.07237144,40025.0,40023.0,0.10306839]
[1645205820015,0.13488144,40025.0,40023.0,0.10306839]
[1645205820315,0.125013,40031.0,40023.0,0.10306839]
[1645205820316,0.25989144,40031.0,40023.0,0.10306839]
[1645205820518,0.07237144,40031.0,40023.0,0.10306839]
[1645205820716,0.07237144,40031.0,40024.0,0.35275668]
[1645205820919,0.07237144,40037.0,40026.0,0.332895]
[1645205821116,0.07237144,40037.0,40027.0,0.0091]
[1645205821317,0.2993834,40037.0,40032.0,0.12549438]
[1645205821718,0.1099,40040.0,40032.0,0.12549438]
[1645205821916,0.07237144,40035.0,40032.0,0.12549438]
[1645205822117,0.08227144,40040.0,40032.0,0.12549438]
[1645205822421,0.062493,40038.0,40032.0,0.12549438]
[1645205822617,0.25305654,40038.0,40032.0,0.1257263]
[1645205823019,0.25305654,40038.0,40032.0,0.12549438]
[1645205823673,0.32542798,40038.0,40032.0,0.12549438]
[1645205823874,0.1,40035.0,40028.0,0.00023192]
[1645205824076,0.332895,40028.0,40026.0,0.00023192]
[1645205824271,0.07237144,40029.0,40025.0,0.00015184]
[1645205824272,0.0095,40027.0,40025.0,0.00015184]
[1645205824470,0.07237144,40026.0,40025.0,0.00015184]
[1645205824872,0.65263513,40026.0,40025.0,0.00015184]
[1645205825076,0.65263513,40026.0,40022.0,0.00023192]
[1645205825077,0.332895,40025.0,40022.0,0.00023192]
[1645205825273,0.332895,40025.0,40009.0,0.0248383]
[1645205825274,1.45,40021.0,40018.0,0.00023192]
[1645205825473,0.332895,40018.0,40012.0,0.00023192]
[1645205825676,0.332895,40012.0,40010.0,0.0021]
[1645205825879,0.7165375,40012.0,40011.0,0.00135345]
[1645205826074,0.7165375,40012.0,40011.0,0.00112138]
[1645205826075,0.6165375,40012.0,40011.0,0.00112138]
[1645205826276,0.6665375,40012.0,40011.0,0.00112138]
[1645205826673,1.45,40011.0,40009.0,0.02507037]
[1645205826873,0.40526644,40010.0,40009.0,0.0248383]
[1645205827117,0.57508773,40010.0,40008.0,0.0004455]
[1645205827319,2.2104,40009.0,40006.0,0.00023617]
[1645205827519,0.332895,40006.0,39995.0,0.0010196]
[1645205827723,0.56962129,40010.0,39998.0,0.29192253]
[1645205827724,0.0096,40005.0,39998.0,0.29192253]
[1645205828019,0.41962129,40010.0,39999.0,0.0091]
[1645205828020,0.06255,40006.0,39999.0,0.0091]
[1645205828219,0.2234165,40005.0,39995.0,0.0010196]
[1645205828420,0.07237144,40003.0,40002.0,9.08e-05]
[1645205828621,0.40526644,40003.0,40002.0,9.08e-05]
[1645205828823,1.05526644,40003.0,40001.0,0.011]
[1645205829021,1.05526644,40003.0,39995.0,0.00110083]
[1645205829022,1.4,40001.0,39995.0,0.00110083]
[1645205829222,1.4,40001.0,39986.0,0.32888541]
[1645205829223,0.2580975,39998.0,39986.0,0.32888541]
[1645205829421,0.06256991,39990.0,39981.0,0.0111]
[1645205829720,0.187715,39998.0,39984.0,0.328906]
[1645205829918,0.16982129,39999.0,39985.0,0.3]
[1645205829919,0.0099,39997.0,39985.0,0.3]
[1645205830118,0.0099,39997.0,39984.0,0.328903]
[1645205830323,0.0099,39997.0,39981.0,0.00501536]
[1645205830324,0.19448853,39994.0,39981.0,0.00501536]
[1645205830520,0.26685997,39994.0,39985.0,0.32743192]
[1645205830722,0.8,39993.0,39982.0,0.328921]
[1645205830974,0.07237144,39991.0,39981.0,0.328932]
[1645205831175,0.26438997,39994.0,39981.0,0.328932]
[1645205831374,0.19201853,39994.0,39982.0,0.3]
[1645205831573,0.19201853,39994.0,39983.0,0.328915]
[1645205831774,0.19201853,39994.0,39985.0,0.328897]
[1645205831974,0.58635212,39996.0,39995.0,0.37419156]
[1645205832174,0.25332012,39996.0,39995.0,0.37419156]
[1645205832374,0.333032,39996.0,39995.0,0.37419156]
[1645205832577,0.062563,39997.0,39995.0,0.37419156]
[1645205833079,0.333032,39996.0,39995.0,0.37419156]
[1645205833274,0.062563,39997.0,39995.0,0.37419156]
[1645205834176,0.112563,39997.0,39995.0,0.37419156]
[1645205834377,0.333032,39996.0,39995.0,0.37419156]
[1645205834620,0.112563,39997.0,39995.0,0.37419156]
[1645205834821,0.333032,39996.0,39995.0,0.37419156]
[1645205835022,0.40540344,39996.0,39995.0,0.37419156]
[1645205835221,0.45540344,39996.0,39995.0,0.37419156]
[1645205835422,0.062563,39997.0,39995.0,0.37419156]
[1645205835628,0.0094,40001.0,39995.0,0.37419156]
[1645205836227,1.23432161,40013.0,39996.0,0.328795]
[1645205836228,0.1998,40007.0,39996.0,0.328795]
[1645205836423,0.2356,40010.0,39995.0,0.37419156]
[1645205836424,0.16986421,40010.0,40006.0,0.44059079]
[1645205836625,0.1156,40012.0,40007.0,0.328686]
[1645205836626,0.16986421,40012.0,40007.0,0.328686]
[1645205836925,0.07237144,40022.0,40007.0,0.328686]
[1645205836926,0.27217144,40022.0,40007.0,0.328686]
[1645205837123,0.0099,40021.0,40008.0,0.0013]
[1645205837524,0.0099,40021.0,40013.0,0.11279907]
[1645205837723,0.125049,40019.0,40013.0,0.11279907]
[1645205837922,0.062518,40020.0,40013.0,0.11279907]
[1645205838226,0.062518,40020.0,40008.0,0.0013]
[1645205838472,0.062518,40020.0,39995.0,0.49923856]
[1645205838473,0.07237144,40018.0,40000.0,0.3459]
[1645205838673,0.2556985,40021.0,40001.0,0.0013]
[1645205838973,0.29471113,40014.0,40001.0,0.0013]
[1645205839171,0.062534,40011.0,40004.0,0.11952945]
[1645205839372,0.062534,40011.0,40001.0,0.31179852]
[1645205839373,0.40540344,40010.0,40001.0,0.31179852]
[1645205839571,0.333032,40009.0,39996.0,0.3014]
[1645205839771,0.07237144,40006.0,39996.0,0.0014]
[1645205839971,0.06254404,40005.0,39996.0,0.0014]
[1645205840371,0.06254404,40005.0,39999.0,0.12645155]
[1645205840572,0.062543,40009.0,39999.0,0.46410807]
[1645205840774,0.062543,40009.0,39999.0,0.12645155]
[1645205840775,0.07237144,40006.0,39999.0,0.12645155]
[1645205840972,0.06254733,40004.0,39999.0,0.12645155]
[1645205841171,0.333032,40003.0,39999.0,0.12645155]
[1645205841371,0.333032,40003.0,39996.0,0.0014]
[1645205841574,0.07237144,40000.0,39995.0,0.37419156]
[1645205841773,0.07237144,40000.0,39996.0,0.29451027]
[1645205842225,0.06255896,39999.0,39996.0,0.29451027]
[1645205842625,0.06255896,39999.0,39995.0,0.48531755]
[1645205843431,0.12511096,39999.0,39995.0,0.37419156]
[1645205843628,0.333032,39997.0,39995.0,0.37419156]
[1645205843829,0.395594,39997.0,39995.0,0.37419156]
[1645205844028,0.45815462,39997.0,39995.0,0.37419156]
[1645205844628,0.12512262,39997.0,39995.0,0.37419156]
[1645205845429,0.333032,39996.0,39995.0,0.37419156]
[1645205845629,0.12512262,39997.0,39995.0,0.37419156]
[1645205845878,0.19749406,39997.0,39995.0,0.37419156]
[1645205846072,0.12512262,39997.0,39995.0,0.37419156]
[1645205846769,0.333032,39996.0,39995.0,0.37419156]
[1645205846968,0.12512262,39997.0,39995.0,0.37419156]
[1645205847671,0.333032,39996.0,39995.0,0.37419156]
[1645205848072,0.40540344,39996.0,39995.0,0.37419156]
[1645205848273,0.45540344,39996.0,39995.0,0.37419156]
[1645205848577,0.05,39996.0,39995.0,0.37419156]
[1645205848773,0.062562,39997.0,39995.0,0.37419156]
[1645205849374,0.40540344,39996.0,39995.0,0.37419156]
[1645205849634,0.062562,39997.0,39995.0,0.37419156]
[1645205850238,0.70540344,39996.0,39995.0,0.37419156]
[1645205850436,0.54053857,39996.0,39995.0,0.37419156]
[1645205850636,0.66291001,39996.0,39995.0,0.37419156]
[1645205850936,0.72547501,39996.0,39995.0,0.37419156]
[1645205851142,0.66291001,39996.0,39995.0,0.37419156]
[1645205851336,0.59053857,39996.0,39995.0,0.37419156]
[1645205851738,0.333032,39996.0,39995.0,0.37419156]
[1645205852337,0.38495213,39996.0,39995.0,0.37419156]
[1645205852537,0.33495213,39996.0,39995.0,0.37419156]
[1645205852739,0.00192013,39996.0,39995.0,0.37419156]
[1645205853238,0.00192013,39996.0,39995.0,0.70299556]
[1645205853474,0.00192013,39996.0,39995.0,0.62997424]
[1645205853680,0.125088,40010.0,39996.0,1.778795]
[1645205853875,0.0092,40012.0,39997.0,0.328779]
[1645205854074,0.4538,40021.0,39997.0,0.328779]
[1645205854075,0.52617144,40021.0,39998.0,0.37352856]
[1645205854273,0.52617144,40021.0,40005.0,0.21307391]
[1645205854473,0.0095,40019.0,40006.0,0.630088]
[1645205854673,0.08187144,40019.0,40006.0,0.675988]
[1645205854875,0.14439444,40019.0,40007.0,0.32868]
[1645205855073,0.333032,40018.0,40006.0,0.0473]
[1645205855275,0.13489744,40015.0,40006.0,0.0014]
[1645205855475,0.13489744,40015.0,40002.0,0.00013132]
[1645205855476,0.07237144,40014.0,40002.0,0.00013132]
[1645205855674,0.333032,40013.0,40004.0,0.29934521]
[1645205855873,0.23345614,40012.0,40002.0,0.00013132]
[1645205856076,0.07237144,40010.0,40002.0,0.00013132]
[1645205856284,0.07237144,40010.0,39995.0,0.37412336]
[1645205856285,0.07237144,40003.0,39995.0,0.37412336]
[1645205856476,0.07237144,40001.0,39995.0,0.37412336]
[1645205856673,0.07237144,40002.0,39995.0,0.37412336]
[1645205857118,0.00381253,39996.0,39995.0,0.70292236]
[1645205857323,0.00381253,39996.0,39995.0,0.70292736]
[1645205857522,0.00381253,39996.0,39995.0,1.00292736]
[1645205858122,0.00381253,39996.0,39995.0,0.67412336]
[1645205858524,0.00381253,39996.0,39995.0,0.37412336]
[1645205860024,0.00381253,39996.0,39995.0,0.70292736]
[1645205860892,0.00381253,39996.0,39995.0,0.37412336]
[1645205861079,0.00381253,39996.0,39995.0,3.36e-06]
[1645205861080,0.40921597,39996.0,39995.0,3.36e-06]
[1645205861283,0.70921597,39996.0,39995.0,3.36e-06]
[1645205861484,0.70921597,39996.0,39989.0,0.00023102]
[1645205861485,0.70732357,39996.0,39989.0,0.00023102]
[1645205861678,0.07237144,39990.0,39988.0,0.00013043]
[1645205861879,0.07237144,39990.0,39988.0,4.3e-07]
[1645205861880,0.72416175,39989.0,39988.0,4.3e-07]
[1645205862081,0.804615,39989.0,39988.0,4.3e-07]
[1645205862279,0.95452095,39989.0,39988.0,4.3e-07]
[1645205862481,1.04193795,39989.0,39977.0,0.00133102]
[1645205862679,1.04193795,39989.0,39976.0,0.0010112]
[1645205862680,0.07237144,39978.0,39976.0,0.0010112]
[1645205862881,0.395632,39977.0,39976.0,0.0010112]
[1645205863079,0.58622585,39977.0,39976.0,0.0010112]
[1645205863279,1.45,39976.0,39975.0,0.71134827]
[1645205863479,0.45540344,39976.0,39975.0,0.71134827]
[1645205863679,0.12518128,39978.0,39975.0,0.70134827]
[1645205863882,0.333032,39977.0,39975.0,0.70134827]
[1645205864281,0.333032,39978.0,39975.0,0.70134827]
[1645205864481,0.333032,39977.0,39975.0,0.70134827]
[1645205864732,0.40540344,39976.0,39975.0,0.70034827]
[1645205865032,0.45540344,39976.0,39975.0,0.69834827]
[1645205865231,0.483032,39976.0,39975.0,0.69334827]
[1645205865432,0.383032,39976.0,39975.0,0.69334827]
[1645205865731,0.05,39976.0,39975.0,0.69334827]
[1645205865932,0.383032,39976.0,39975.0,0.69334827]
[1645205866333,1.783032,39975.0,39969.0,0.0031282]
[1645205866535,1.783032,39975.0,39965.0,0.0002836]
[1645205866536,0.38686799,39970.0,39965.0,0.0002836]
[1645205866739,0.20491467,39968.0,39965.0,0.0002836]
[1645205866933,0.40540344,39966.0,39965.0,0.0002836]
[1645205867331,0.12237144,39966.0,39965.0,0.0002836]
[1645205867532,0.05,39966.0,39965.0,0.0002836]
[1645205867733,0.25045917,39968.0,39964.0,0.0005672]
[1645205867935,0.062615,39968.0,39964.0,0.0005672]
[1645205868133,0.383032,39967.0,39964.0,0.0005672]
[1645205868379,0.13498644,39968.0,39964.0,0.0005672]
[1645205868380,0.112615,39968.0,39964.0,0.0005672]
[1645205868673,0.05,39967.0,39964.0,0.0005672]
[1645205868872,0.112615,39968.0,39964.0,0.0005672]
[1645205869075,0.0459,39975.0,39964.0,0.0005672]
[1645205869278,0.062589,39971.0,39968.0,0.337845]
[1645205869475,0.1998,39976.0,39968.0,0.337845]
[1645205869675,0.062593,39974.0,39968.0,0.337845]
[1645205869875,0.333032,39973.0,39968.0,0.337845]
[1645205870074,0.1998,39974.0,39968.0,0.337845]
[1645205870574,0.062593,39972.0,39968.0,0.337845]
[1645205870776,0.062593,39972.0,39969.0,0.33375468]
[1645205871175,0.062593,39972.0,39970.0,0.33360811]
[1645205871377,0.187761,39981.0,39971.0,0.329039]
[1645205871575,0.6773,39987.0,39971.0,0.329033]
[1645205871576,0.125166,39978.0,39971.0,0.329033]
[1645205871779,0.062577,39979.0,39970.0,0.10742254]
[1645205871975,0.062577,39979.0,39977.0,0.11610121]
[1645205872222,0.062577,39979.0,39971.0,0.24849105]
[1645205872420,0.062577,39979.0,39972.0,0.0459]
[1645205872621,0.06257843,39978.0,39970.0,0.00596111]
[1645205872821,0.06257843,39978.0,39971.0,0.329034]
[1645205873022,0.06257843,39978.0,39971.0,0.329035]
[1645205873023,0.12515843,39978.0,39971.0,0.329035]
[1645205873223,0.00936743,39978.0,39971.0,0.10254276]
[1645205873425,0.45990744,39988.0,39976.0,0.02762856]
[1645205873426,0.387536,39988.0,39976.0,0.02762856]
[1645205873626,0.18774,39994.0,39977.0,0.374873]
[1645205873627,0.0092,39993.0,39977.0,0.374873]
[1645205873823,0.0092,39993.0,39978.0,0.0459]
[1645205874023,0.28561089,39996.0,39979.0,0.628952]
[1645205874223,0.28561089,39996.0,39990.0,0.32745631]
[1645205874434,0.02326,39996.0,39991.0,0.320141]
[1645205874724,0.02326,39996.0,39990.0,0.67335631]
[1645205874725,0.02326,39996.0,39993.0,0.320125]
[1645205875024,0.02326,39996.0,39994.0,0.0459]
[1645205875224,0.02326,39996.0,39995.0,0.320107]
[1645205875425,0.02326,39996.0,39995.0,0.53371158]
[1645205875624,0.36087956,40013.0,39995.0,0.49363556]
[1645205875897,0.333018,39999.0,39991.0,0.0014]
[1645205876088,0.07237144,39993.0,39979.0,0.25116111]
[1645205876384,0.062552,40000.0,39980.0,0.0014]
[1645205876385,0.07237144,39994.0,39980.0,0.0014]
[1645205876582,0.21652976,39993.0,39981.0,0.26036456]
[1645205876784,0.062557,39991.0,39987.0,0.10479537]
[1645205877482,0.062557,39991.0,39988.0,0.00456111]
[1645205877884,0.333018,39990.0,39988.0,0.00456111]
[1645205878083,0.125121,39990.0,39988.0,0.00456111]
[1645205878285,0.333018,39989.0,39988.0,0.00456111]
[1645205878485,0.125121,39990.0,39988.0,0.00293407]
[1645205879733,0.40538944,39989.0,39988.0,0.00293407]
[1645205879929,0.41438944,39989.0,39988.0,0.00293407]
[1645205880428,0.009,39989.0,39976.0,0.00293407]
[1645205880630,0.18768649,39990.0,39986.0,0.1238377]
[1645205881030,0.125116,39997.0,39986.0,0.1238377]
[1645205881329,0.05,39993.0,39986.0,0.1238377]
[1645205881530,0.9,39993.0,39978.0,0.21229949]
[1645205881732,0.062556,39988.0,39979.0,0.320248]
[1645205881931,0.062556,39988.0,39983.0,0.32022]
[1645205882533,0.00187063,39990.0,39983.0,0.32022]
[1645205883878,0.00187063,39990.0,39985.0,0.382736]
[1645205884175,0.00187063,39990.0,39987.0,0.320182]
[1645205884472,0.00187063,39990.0,39989.0,0.12440534]
[1645205884674,0.00187063,39990.0,39989.0,0.44456934]
[1645205886078,0.00187063,39990.0,39989.0,0.74456934]
[1645205886275,0.00187063,39990.0,39989.0,0.97264337]
[1645205886475,0.00184665,39991.0,39989.0,0.97264337]
[1645205886677,0.63076363,40015.0,39990.0,0.320155]
[1645205886678,0.804,40012.0,39990.0,0.320155]
[1645205886878,0.062533,40007.0,39990.0,0.466055]
[1645205887122,0.062533,40007.0,39990.0,0.666055]
[1645205887321,0.766329,40012.0,39991.0,0.062529]
[1645205887530,0.062529,40004.0,39992.0,0.366024]
[1645205887723,0.062529,40004.0,40003.0,0.42399256]
[1645205888125,0.06252505,40007.0,40004.0,0.320021]
[1645205888526,0.1250501,40010.0,40004.0,0.320021]
[1645205888725,0.1250501,40010.0,39995.0,0.307718]
[1645205888927,0.19736681,40009.0,39996.0,0.320084]
[1645205889124,0.25989094,40009.0,40002.0,0.28127841]
[1645205889427,0.262318,40012.0,40003.0,0.320028]
[1645205889629,0.3,40022.0,40004.0,0.1959]
[1645205889829,0.4998,40024.0,40005.0,0.320002]
[1645205890031,0.1998,40024.0,40006.0,0.0459]
[1645205890226,0.3,40023.0,40007.0,0.319983]
[1645205890527,0.3,40023.0,40008.0,0.0459]
[1645205890528,0.10396566,40019.0,40008.0,0.0459]
[1645205890725,0.3,40023.0,40008.0,0.0459]